[Event "German Bundesliga 2023-24"]
[Site "Germany"]
[Date "2024.02.25"]
[Round "11.22"]
[White "Dautov, Rustem"]
[Black "Vitiugov, Nikita"]
[Result "1/2-1/2"]
[ECO "D35"]
[WhiteElo "2584"]
[BlackElo "2686"]
[Annotator "TA"]
[PlyCount "43"]
[EventDate "2023.10.20"]
[EventType "team-tourn"]
[EventCountry "GER"]
[SourceTitle "playchess.com"]
[Source "ChessBase"]
[SourceQuality "1"]
[TimeControl "40/6000+30:3000+30"]

{[%evp 12,43,26,4,15,33,29,24,27,27,29,33,27,29,26,27,34,31,35,27,36,36,52,24,11,29,8,14,11,25,26,18,31,0]} 1. d4 {[%emt 0:00:04]} Nf6 {[%emt 0:00:11]} 2. c4 {[%emt 0:00:11]} e6 {[%emt 0:00:33]} 3. Nf3 {[%emt 0:00:15]} d5 {[%emt 0:00:17]} 4. Nc3 {[%emt 0:00:14]} Nbd7 {[%emt 0:00:15]} 5. cxd5 {[%emt 0:01:04]} exd5 {[%emt 0:00:27]} 6. Bf4 {[%emt 0:00:09]} Bb4 {[%emt 0:03:14]} 7. e3 {[%emt 0:01:46]} Ne4 {[%emt 0:01:27]} 8. Qc2 {[%emt 0:02:55]} g5 {[%emt 0:01:41]} 9. Be5 {[%emt 0:01:33]} Nxe5 {[%emt 0:10:58] White has an edge.} 10. Nxe5 {[%emt 0:01:02] [#] aiming for Qa4+.} Qe7 {[%emt 0:00:11]} 11. Bb5+ {[%emt 0:25:59]} Kf8 {[%emt 0:04:12]} 12. O-O {[%emt 0:00:46][%csl LRd5,LRe4]} Bxc3 {[%emt 0:03:54]} 13. bxc3 {[%emt 0:01:19][%cal Bb2c3,Bc3c4][%mdl 32]} f6 {[%emt 0:00:58] Dodges f4} 14. Nf3 {[%emt 0:02:01]} Kg7 {[%emt 0:04:48]} 15. Bd3 {[%emt 0:03:52]} Bf5 {[%emt 0:06:05]} 16. c4 {[%emt 0:09:43]} c6 {[%emt 0:04:12]} 17. Nd2 {[%emt 0:09:48]} Nxd2 {[%emt 0:12:02]} 18. Qxd2 {[%emt 0:00:14]} Bxd3 {[%emt 0:01:43]} 19. Qxd3 {[%emt 0:00:08]} dxc4 {[%emt 0:00:44]} 20. Qxc4 {[%emt 0:00:37]} Rhd8 {[%emt 0:00:08]} 21. Rfb1 {[%emt 0:07:23]} Rd5 {[%emt 0:02:21]} 22. a4 {[%emt 0:10:30] Weighted Error Value: White=0.05 (flawless) /Black=0.03 (flawless) .  Inaccurate:     	White=2     	---        OK:         	White=7     	Black=8      Best:        	---       	Black=1} 1/2-1/2

[Event "German Bundesliga 2023-24"]
[Site "Germany"]
[Date "2024.02.25"]
[Round "11.23"]
[White "Donchenko, Alexander"]
[Black "Kozak, Adam"]
[Result "1-0"]
[ECO "E01"]
[WhiteElo "2664"]
[BlackElo "2600"]
[Annotator "TA"]
[PlyCount "89"]
[EventDate "2023.10.20"]
[EventType "team-tourn"]
[EventCountry "GER"]
[SourceTitle "playchess.com"]
[Source "ChessBase"]
[SourceQuality "1"]
[TimeControl "40/6000+30:3000+30"]

{[%evp 16,89,24,25,42,20,42,32,24,28,48,44,47,31,50,46,37,22,44,0,37,49,28,40,26,4,17,11,39,45,35,27,36,38,54,18,63,41,52,45,62,48,50,55,61,49,49,61,64,75,106,95,98,108,110,109,116,94,108,102,145,144,211,205,199,199,291,235,243,214,29982,29983,29993,29994,29997,0]} 1. d4 {[%emt 0:00:03]} Nf6 {[%emt 0:00:34]} 2. c4 {[%emt 0:00:06]} e6 {[%emt 0:00:22]} 3. Nf3 {[%emt 0:00:06]} d5 {[%emt 0:04:17]} 4. g3 {[%emt 0:00:38]} Bb4+ {[%emt 0:01:19]} 5. Bd2 {[%emt 0:00:14]} Bd6 {[%emt 0:00:39]} 6. Bg2 {[%emt 0:00:20]} O-O {[%emt 0:00:42]} 7. O-O {[%emt 0:00:14]} c6 {[%emt 0:00:57]} 8. Nc3 {[%emt 0:00:42]} Nbd7 {[%emt 0:01:19]} 9. b3 {[%emt 0:00:46]} h6 {[%emt 0:15:31]} 10. Qc2 {[%emt 0:00:49]} dxc4 {[%emt 0:16:58]} 11. bxc4 {[%emt 0:00:09]} e5 {[%emt 0:00:07] White is slightly better.} 12. e3 {[%emt 0:08:20]} Re8 {[%emt 0:03:15]} 13. Rad1 {[%emt 0:02:15]} Qe7 {[%emt 0:07:21]} 14. Bc1 {[%emt 0:02:01]} Nf8 {[%emt 0:07:37]} 15. dxe5 {[%emt 0:21:16]} Bxe5 {[%emt 0:00:06]} 16. Bb2 {[%emt 0:00:08] Strongly threatening Nxe5.} Ng6 {[%emt 0:09:05]} 17. h3 {[%emt 0:07:04]} Bc7 {[%emt 0:03:03]} 18. Ne2 {[%emt 0:03:32]} Ne5 {[%emt 0:16:17]} 19. Nxe5 {[%emt 0:06:48]} Bxe5 {[%emt 0:00:06]} 20. Nd4 {[%emt 0:00:14]} Bd7 {[%emt 0:05:11]} 21. Rfe1 {[%emt 0:03:43]} c5 {[%emt 0:08:11]} 22. Nb5 {[%emt 0:10:54]} Bxb5 {[%emt 0:02:07]} 23. Bxe5 {[%emt 0:01:56]} Qxe5 {[%emt 0:00:06]} 24. cxb5 {[%emt 0:00:06]} Qc7 {[%emt 0:00:20]} 25. e4 {[%emt 0:05:27]} Rad8 {[%emt 0:00:58]} 26. Rxd8 {[%emt 0:01:03]} Rxd8 {[%emt 0:01:49]} 27. e5 {[%emt 0:00:07]} Nh7 {[%emt 0:01:20]} 28. e6 {[%emt 0:02:51] White is much more active. Black is weak on the light squares} fxe6 {[%emt 0:00:34]} 29. Rxe6 {[%emt 0:00:21]} Nf6 {[%emt 0:01:43]} 30. Qe2 {[%emt 0:02:29]} Kf7 {[%emt 0:02:30] Prevents Re7+} 31. Re3 {[%emt 0:05:52]} b6 {[%emt 0:00:18]} 32. Bc6 {[%emt 0:02:27] Prevents Qd7.} Qd6 {[%emt 0:01:11]} 33. Kg2 {[%emt 0:09:26]} Kf8 {[%emt 0:00:34]} 34. Re6 {[%emt 0:02:37]} Qc7 {[%emt 0:00:03]} 35. a4 {[%emt 0:01:31]} Kf7 {[%emt 0:00:52]} 36. Re3 {[%emt 0:02:38]} Kf8 {[%emt 0:00:37]} 37. Qc2 {[%emt 0:02:15]} a5 {[%emt 0:00:28] [#]} 38. Qf5 $1 {[%emt 0:01:36]} Kg8 {[%emt 0:00:25]} (38... Qd6 $16 39. Re6 Qd4) 39. Re6 $18 {[%emt 0:01:52]} Rf8 {[%emt 0:00:36]} 40. Bf3 {[%emt 0:01:56][%cal Bc6f3,Bf3d5,Bd5g8][%mdl 32] aiming for Rc6.} Nh7 {[%emt 0:00:30] [#]} (40... Kh8 $142 41. Be4 Kg8) 41. Bd5 $1 {[%emt 0:10:08]} Kh8 {[%emt 0:03:51]} 42. Qg6 $40 {[%emt 0:04:30][%mdl 128] White is out for blood.} Nf6 {[%emt 0:03:57] [#] Against Re8} (42... Qd7 $18 43. Rd6 Qe7) 43. Rxf6 $1 {[%emt 0:00:36][%mdl 512] White mates.} Rxf6 {[%emt 0:01:01]} (43... Qe7 44. Rxf8+) 44. Qe8+ {[%emt 0:00:05]} Kh7 {[%emt 0:00:03]} 45. Bg8+ {[%emt 0:00:06][%mdl 32768] Weighted Error Value: White=0.07 (flawless) /Black=0.32.  Mistake:       	---       	Black=3      Inaccurate:     	White=2     	Black=5      OK:         	White=14    	Black=9      Best:        	White=4     	Black=1      Strong:       	White=1     	---        Brilliant:      	White=1     	---       . Loss on time!?} 1-0

[Event "German Bundesliga 2023-24"]
[Site "Germany"]
[Date "2024.02.25"]
[Round "11.24"]
[White "Kozul, Zdenko"]
[Black "Wojtaszek, Radoslaw"]
[Result "0-1"]
[ECO "E11"]
[WhiteElo "2531"]
[BlackElo "2668"]
[Annotator "ChessBase"]
[PlyCount "52"]
[EventDate "2023.10.20"]
[EventType "team-tourn"]
[EventCountry "GER"]
[SourceTitle "playchess.com"]
[Source "ChessBase"]
[SourceQuality "1"]
[TimeControl "40/6000+30:3000+30"]

1. d4 {[%emt 0:00:06]} Nf6 {[%emt 0:00:11]} 2. c4 {[%emt 0:00:06]} e6 {[%emt 0:00:03]} 3. g3 {[%emt 0:01:09]} Bb4+ {[%emt 0:00:09]} 4. Bd2 {[%emt 0:00:12]} a5 {[%emt 0:00:11]} 5. Bg2 {[%emt 0:00:40]} d5 {[%emt 0:00:08]} 6. Nf3 {[%emt 0:03:46]} O-O {[%emt 0:00:14]} 7. O-O {[%emt 0:00:40]} dxc4 {[%emt 0:00:28]} 8. a3 {[%emt 0:01:03]} Be7 {[%emt 0:01:01]} 9. a4 {[%emt 0:05:17]} c6 {[%emt 0:14:06]} 10. Na3 {[%emt 0:08:09]} b5 {[%emt 0:10:53]} 11. axb5 {[%emt 0:16:53]} Bxa3 {[%emt 0:01:33]} 12. bxa3 {[%emt 0:00:11]} cxb5 {[%emt 0:00:06]} 13. Qb1 {[%emt 0:00:36]} Qb6 {[%emt 0:11:08]} 14. e4 {[%emt 0:04:12]} Bb7 {[%emt 0:02:54]} 15. Re1 {[%emt 0:00:08]} Nbd7 {[%emt 0:14:18]} 16. Ra2 {[%emt 0:36:55]} Rfc8 {[%emt 0:16:43]} 17. Rb2 {[%emt 0:02:37]} Bxe4 {[%emt 0:04:05]} 18. Rxe4 {[%emt 0:00:37]} Nxe4 {[%emt 0:00:04]} 19. Qxe4 {[%emt 0:00:16]} Nf6 {[%emt 0:00:08]} 20. Qe1 {[%emt 0:12:44]} Nd5 {[%emt 0:02:32]} 21. Ne5 {[%emt 0:06:24]} Qxd4 {[%emt 0:06:31]} 22. Rxb5 {[%emt 0:00:08]} c3 {[%emt 0:00:02]} 23. Bc1 {[%emt 0:00:07]} c2 {[%emt 0:00:03]} 24. Bf3 {[%emt 0:04:48]} Nc3 {[%emt 0:00:07]} 25. Rb7 {[%emt 0:01:18]} Qd1 {[%emt 0:01:39]} 26. Qf1 {[%emt 0:02:36]} Rab8 {[%emt 0:01:56]} 0-1

[Event "German Bundesliga 2023-24"]
[Site "Germany"]
[Date "2024.02.25"]
[Round "11.25"]
[White "Abasov, Nijat"]
[Black "Nakamura, Hikaru"]
[Result "0-1"]
[ECO "D30"]
[WhiteElo "2641"]
[BlackElo "2788"]
[Annotator "RC"]
[PlyCount "138"]
[EventDate "2023.10.20"]
[EventType "team-tourn"]
[EventCountry "GER"]
[SourceTitle "playchess.com"]
[Source "ChessBase"]
[SourceQuality "1"]
[TimeControl "40/6000+30:3000+30"]

1. d4 {[%emt 0:00:12]} d5 {[%emt 0:00:05]} 2. c4 {[%emt 0:00:11]} e6 {[%emt 0:00:04]} 3. Nf3 {[%emt 0:00:06]} a6 {[%emt 0:00:04]} 4. Bg5 {[%emt 0:00:27]} Be7 {[%emt 0:00:12]} 5. Bxe7 {[%emt 0:00:08]} Qxe7 {[%emt 0:00:04]} 6. Nbd2 {[%emt 0:00:19]} Nf6 {[%emt 0:00:05]} 7. g3 {[%emt 0:00:14]} c5 {[%emt 0:00:29]} 8. dxc5 {[%emt 0:04:41]} O-O {[%emt 0:05:10]} 9. Bg2 {[%emt 0:06:57]} d4 {[%emt 0:00:50]} 10. Nxd4 {[%emt 0:03:45]} Rd8 {[%emt 0:00:45]} 11. N4b3 {[%emt 0:04:20]} a5 {[%emt 0:02:01]} 12. a4 {[%emt 0:02:01]} Nfd7 {[%emt 0:49:54]} 13. O-O {[%emt 0:06:34]} Nxc5 {[%emt 0:00:14]} 14. Nxc5 {[%emt 0:00:43]} Qxc5 {[%emt 0:00:04]} 15. Ne4 {[%emt 0:03:28]} Qc7 {[%emt 0:00:14]} 16. Qc2 {[%emt 0:01:09]} Na6 {[%emt 0:00:31]} 17. Rfd1 {[%emt 0:05:13]} Bd7 {[%emt 0:00:15]} 18. Ng5 {[%emt 0:07:43]} f5 {[%emt 0:01:23]} 19. e4 {[%emt 0:01:20]} h6 {[%emt 0:01:51]} 20. Nf3 {[%emt 0:01:44]} fxe4 {[%emt 0:04:03]} 21. Qxe4 {[%emt 0:05:15]} Nc5 {[%emt 0:00:19]} 22. Qc2 {[%emt 0:01:56]} Bc6 {[%emt 0:02:09]} 23. Re1 {[%emt 0:11:32]} Bxf3 {[%emt 0:10:42]} 24. Bxf3 {[%emt 0:00:24]} Rd4 {[%emt 0:00:02]} 25. Rad1 {[%emt 0:03:24]} Rad8 {[%emt 0:00:26]} 26. Rxd4 {[%emt 0:11:43]} Rxd4 {[%emt 0:00:04]} 27. Re3 {[%emt 0:01:33]} Qd7 {[%emt 0:01:27]} 28. Bh5 {[%emt 0:02:24]} Rd3 {[%emt 0:15:54]} 29. Qe2 {[%emt 0:00:16]} b6 {[%emt 0:00:59]} 30. Bg6 {[%emt 0:02:43]} Rxe3 {[%emt 0:02:37]} 31. Qxe3 {[%emt 0:00:06]} Qd1+ {[%emt 0:00:25]} 32. Kg2 {[%emt 0:00:06]} Qg4 {[%emt 0:00:03]} 33. Bd3 {[%emt 0:00:15]} Qd1 {[%emt 0:00:09]} 34. Be2 {[%emt 0:04:00]} Qxa4 {[%emt 0:03:42]} 35. Qe5 {[%emt 0:00:01]} Kh7 {[%emt 0:00:23]} 36. Qd6 {[%emt 0:01:44]} Qb3 {[%emt 0:04:29]} 37. Qd2 {[%emt 0:02:37]} e5 {[%emt 0:01:12]} 38. Bg4 {[%emt 0:00:59]} Qxc4 {[%emt 0:00:22]} 39. Bf5+ {[%emt 0:03:19]} g6 {[%emt 0:00:04]} 40. Bb1 {[%emt 0:00:22]} Qd4 {[%emt 0:00:25]} 41. Qe2 {[%emt 0:50:05]} e4 {[%emt 0:52:41]} 42. h4 {[%emt 0:02:32]} h5 {[%emt 0:00:00]} 43. f3 {[%emt 0:00:00]} e3 {[%emt 0:00:00]} 44. f4 {[%emt 0:00:00]} Qd2 {[%emt 0:00:00]} 45. Kf3 {[%emt 0:00:00]} Nb3 {[%emt 0:00:00]} 46. Qxe3 {[%emt 0:00:00]} Nd4+ {[%emt 0:00:00]} 47. Ke4 {[%emt 0:00:00]} Qxb2 {[%emt 0:00:00]} 48. Kd5 {[%emt 0:00:00]} Nf5 {[%emt 0:00:00]} 49. Bxf5 {[%emt 0:00:00]} Qb5+ {[%emt 0:00:00]} 50. Kd6 {[%emt 0:00:00]} Qxf5 {[%emt 0:00:00]} 51. Qe7+ {[%emt 0:00:00]} Kg8 {[%emt 0:00:00]} 52. Qe5 {[%emt 0:00:00]} Qf8+ {[%emt 0:00:00]} 53. Kc6 {[%emt 0:00:00]} Qc5+ {[%emt 0:00:00]} 54. Kd7 {[%emt 0:00:00]} a4 {[%emt 0:00:00]} 55. g4 {[%emt 0:00:00]} hxg4 {[%emt 0:00:00]} 56. h5 {[%emt 0:00:00]} Qf8 {[%emt 0:00:00]} 57. hxg6 {[%emt 0:00:00]} Qg7+ {[%emt 0:00:00]} 58. Kd8 {[%emt 0:00:00]} Qxg6 {[%emt 0:00:00]} 59. f5 {[%emt 0:00:00]} Qg5+ {[%emt 0:00:00]} 60. Ke8 {[%emt 0:00:00]} g3 {[%emt 0:02:48]} 61. Qe6+ {[%emt 0:00:00]} Kh7 {[%emt 0:00:06]} 62. f6 {[%emt 0:02:04]} g2 {[%emt 0:00:25]} 63. f7 {[%emt 0:00:05]} Qb5+ {[%emt 0:02:06]} 64. Kd8 {[%emt 0:00:24]} g1=Q {[%emt 0:02:17]} 65. f8=Q {[%emt 0:00:27]} Qd4+ {[%emt 0:01:06]} 66. Kc7 {[%emt 0:00:25]} Qbc5+ {[%emt 0:00:15]} 67. Qxc5 {[%emt 0:00:05]} Qxc5+ {[%emt 0:00:02]} 68. Kb7 {[%emt 0:00:07]} a3 {[%emt 0:00:43]} 69. Qf6 {[%emt 0:00:46]} b5 {[%emt 0:02:51]} 0-1

[Event "German Bundesliga 2023-24"]
[Site "Germany"]
[Date "2024.02.25"]
[Round "11.26"]
[White "Abdusattorov, Nodirbek"]
[Black "Iturrizaga Bonelli, Eduardo"]
[Result "1-0"]
[ECO "B12"]
[WhiteElo "2716"]
[BlackElo "2600"]
[Annotator "TA"]
[PlyCount "103"]
[EventDate "2023.10.20"]
[EventType "team-tourn"]
[EventCountry "GER"]
[SourceTitle "playchess.com"]
[Source "ChessBase"]
[SourceQuality "1"]
[TimeControl "40/6000+30:3000+30"]

{[%evp 27,103,0,0,0,15,11,22,0,0,0,12,0,12,0,35,26,25,31,29,33,45,14,17,0,7,0,29,0,0,0,0,0,0,-6,0,-20,0,0,0,-25,0,0,0,-16,0,0,10,0,40,30,31,29,57,59,75,68,116,116,123,108,127,122,114,131,102,68,81,61,69,53,89,0,116,99,316,324,443,441]} 1. e4 {[%emt 0:00:07]} c6 {[%emt 0:00:07]} 2. d4 {[%emt 0:00:46]} d5 {[%emt 0:00:59]} 3. e5 {[%emt 0:00:10]} Bf5 {[%emt 0:00:10]} 4. Nd2 {[%emt 0:00:52]} e6 {[%emt 0:01:29]} 5. Nb3 {[%emt 0:00:34]} Nd7 {[%emt 0:00:10]} 6. Nf3 {[%emt 0:00:14]} Qc7 {[%emt 0:01:14] B12: Caro-Kann: Advance Variation.} 7. Be2 {[%emt 0:01:58]} c5 {[%emt 0:05:53]} 8. dxc5 {[%emt 0:09:06]} Bxc5 {[%emt 0:01:32]} 9. Nxc5 {[%emt 0:02:31]} Qxc5 {[%emt 0:00:35]} 10. c3 {[%emt 0:07:15]} Ne7 {[%emt 0:00:19]} 11. Qa4 $5 {[%emt 0:00:06][%mdl 4] Leaves trodden paths.} Qc7 {[%emt 0:08:13]} 12. Nd4 $5 $146 {[%emt 0:00:06][%mdl 8] An interesting novelty.} ({Predecessor:} 12. Bf4 O-O 13. Bg3 Be4 14. Nd2 Nc5 15. Qd1 Bxg2 16. Rg1 Be4 17. Kf1 Bf5 18. Nb3 {0-1 Naroditsky,D (2617)-Keymer,V (2698) Titled Tuesday intern op 29th Nov Late blitz 2022 (8)}) 12... O-O {[%emt 0:25:22]} 13. f4 {[%emt 0:00:57]} Be4 {[%emt 0:08:47]} 14. O-O {[%emt 0:00:47]} Nf5 {[%emt 0:13:05]} 15. Nxf5 {[%emt 0:01:22]} Bxf5 {[%emt 0:00:21]} 16. Be3 {[%emt 0:00:07]} Nb6 {[%emt 0:00:20]} 17. Qb4 {[%emt 0:01:38]} Nc4 {[%emt 0:02:14]} 18. Bd4 {[%emt 0:00:02]} Rfc8 {[%emt 0:15:53]} 19. b3 {[%emt 0:16:13]} a5 {[%emt 0:09:43]} 20. Qa4 $1 {[%emt 0:00:50]} b5 {[%emt 0:01:03]} 21. Qxb5 {[%emt 0:00:13]} Na3 {[%emt 0:00:04]} 22. Qa4 {[%emt 0:00:32]} Nc2 {[%emt 0:00:06]} 23. Rac1 {[%emt 0:01:01]} Qe7 {[%emt 0:05:26]} 24. Rfd1 {[%emt 0:06:55]} h6 {[%emt 0:06:34]} 25. Bf3 {[%emt 0:05:07]} Rab8 {[%emt 0:00:51]} 26. Be2 {[%emt 0:02:35]} Kh7 {[%emt 0:00:43]} 27. Rf1 {[%emt 0:15:11]} (27. Qxa5 $2 Ra8 28. Qb6 Rxa2 $17) 27... Nxd4 {[%emt 0:01:49]} 28. Qxd4 {[%emt 0:01:18]} Qa3 {[%emt 0:00:06]} 29. Qd2 {[%emt 0:01:24]} a4 {[%emt 0:00:33]} 30. Bd1 {[%emt 0:02:54]} Rc7 {[%emt 0:00:59]} 31. h4 {[%emt 0:02:14]} Be4 {[%emt 0:00:31]} 32. Re1 {[%emt 0:00:46]} axb3 {[%emt 0:00:46]} 33. axb3 {[%emt 0:00:46]} Kh8 {[%emt 0:00:29]} (33... h5 $5) 34. c4 {[%emt 0:06:29]} Bf5 {[%emt 0:00:24]} 35. Bf3 {[%emt 0:00:48]} dxc4 {[%emt 0:00:39]} (35... Rxb3 {keeps more tension.} 36. cxd5 Rd3 37. Qxd3 Qxd3 38. Rxc7 Qd4+) 36. bxc4 {[%emt 0:00:18]} Rbc8 {[%emt 0:00:21]} 37. Qd4 {[%emt 0:05:46]} (37. Be2 {is more complex.} Qg3 38. h5 Qh4 39. Rc3) 37... Qa4 {[%emt 0:00:38]} 38. Be2 {[%emt 0:00:56]} Rd7 $1 {[%emt 0:00:04]} 39. Qe3 {[%emt 0:00:11]} Bc2 {[%emt 0:00:22]} 40. Bf1 {[%emt 0:05:51]} Rcd8 {[%emt 0:01:04]} 41. c5 $1 {[%emt 0:54:28]} Rd4 {[%emt 0:03:54]} (41... Rc7 $14 {was preferrable.}) 42. Qc3 $1 $16 {[%emt 0:00:00]} Rd2 {[%emt 0:04:16]} 43. c6 {[%emt 0:00:00]} ({Don't play} 43. Re2 $6 R8d3 (43... Qxf4 $2 44. g3 $18) 44. Qb2 Rxe2 (44... Rb3 45. Qa1 $11) 45. Bxe2 Rd2 $11) 43... Qxf4 {[%emt 0:02:54]} 44. Qe3 {[%emt 0:00:00]} Qb4 {[%emt 0:00:57]} 45. Re2 $1 {[%emt 0:00:00]} Rxe2 {[%emt 0:00:08]} 46. Bxe2 {[%emt 0:00:00]} Be4 {[%emt 0:00:13]} 47. c7 {[%emt 0:00:00]} Rc8 {[%emt 0:00:09]} 48. Bf1 $1 {[%emt 0:00:00]} Bd5 {[%emt 0:02:44] [#]} 49. h5 {[%emt 0:00:00]} ({White should try} 49. Rc2 $1 $16) 49... Qe7 {[%emt 0:08:10]} ({Of course not} 49... Qg4 50. Qf2 Qg5 51. Rc2) (49... Qb7 $11 {remains equal.}) 50. Qc3 $16 {[%emt 0:00:00]} Qg5 $2 {[%emt 0:00:11] [#]} (50... Bb7 $16) 51. Rc2 $1 $18 {[%emt 0:00:00]} Be4 {[%emt 0:05:50]} 52. Rb2 {[%emt 0:00:00]} 1-0

[Event "German Bundesliga 2023-24"]
[Site "Germany"]
[Date "2024.02.25"]
[Round "11.27"]
[White "Oleksiyenko, Mykhaylo"]
[Black "Duda, Jan-Krzysztof"]
[Result "1/2-1/2"]
[ECO "C47"]
[WhiteElo "2567"]
[BlackElo "2726"]
[Annotator "TA"]
[PlyCount "103"]
[EventDate "2023.10.20"]
[EventType "team-tourn"]
[EventCountry "GER"]
[SourceTitle "playchess.com"]
[Source "ChessBase"]
[SourceQuality "1"]
[TimeControl "40/6000+30:3000+30"]

{[%evp 20,103,19,17,11,8,8,8,13,16,2,12,4,7,4,7,9,8,6,6,12,11,56,8,7,7,15,17,48,50,53,24,24,9,24,22,48,25,44,29,48,11,11,11,14,13,34,7,16,0,0,0,2,0,7,0,0,0,0,0,0,0,41,41,41,41,41,41,41,41,41,41,41,0,0,0,0,0,0,0,0,0,0,0,0,0]} 1. e4 {[%emt 0:00:03]} e5 {[%emt 0:00:13]} 2. Nf3 {[%emt 0:00:08]} Nc6 {[%emt 0:00:06]} 3. Nc3 {[%emt 0:00:11]} Nf6 {[%emt 0:00:11]} 4. d4 {[%emt 0:00:08]} exd4 {[%emt 0:00:07]} 5. Nxd4 {[%emt 0:00:03]} Bb4 {[%emt 0:00:08]} 6. Nxc6 {[%emt 0:00:04]} bxc6 {[%emt 0:00:09]} 7. Bd3 {[%emt 0:00:04]} d5 {[%emt 0:00:11]} 8. Bd2 {[%emt 0:00:07]} O-O {[%emt 0:00:41]} 9. O-O {[%emt 0:00:02]} Bxc3 {[%emt 0:00:24] C47: Scotch Four Knights and Four Knights with 4 g3.} 10. Bxc3 {[%emt 0:00:04]} dxe4 {[%emt 0:00:09]} 11. Bxf6 {[%emt 0:00:18]} Qxf6 {[%emt 0:00:07]} 12. Bxe4 {[%emt 0:00:02]} Qxb2 {[%emt 0:00:53]} 13. Bxc6 {[%emt 0:00:04]} Rb8 {[%emt 0:00:21]} 14. Rb1 {[%emt 0:00:03]} Qxb1 {[%emt 0:00:07]} 15. Qxb1 {[%emt 0:00:02]} Rxb1 {[%emt 0:00:07]} 16. Rxb1 {[%emt 0:00:01]} Rd8 {[%emt 0:00:22]} 17. Bf3 {[%emt 0:00:03]} Kf8 {[%emt 0:08:18]} 18. Rb8 {[%emt 0:00:13]} Re8 {[%emt 0:01:42]} 19. h3 {[%emt 0:01:45]} Bf5 {[%emt 0:06:38]} 20. Rb7 {[%emt 0:03:13]} Be4 $146 {[%emt 0:00:40]} ({Predecessor:} 20... c5 21. c3 Re1+ 22. Kh2 Rc1 23. Bd5 Be6 24. Bxe6 fxe6 25. Rxa7 Rxc3 26. Rc7 Rc2 27. Kg3 Rxa2 28. Rxc5 Kf7 29. f3 Kf6 30. h4 Rb2 31. Ra5 {½-½ Zawadzka,J (2428)-Harika,D (2511) FIDE Grand Swiss (Women) 2021 (7)}) 21. Rxa7 {[%emt 0:08:10]} (21. Rxc7 $14 Bxf3 22. gxf3) 21... Bxf3 $11 {[%emt 0:01:21]} 22. gxf3 {[%emt 0:00:03]} Re1+ {[%emt 0:00:21]} 23. Kg2 {[%emt 0:00:02]} Rc1 {[%emt 0:00:10]} 24. Rxc7 {[%emt 0:00:03]} Ra1 {[%emt 0:00:05]} 25. f4 {[%emt 0:05:44]} Rxa2 {[%emt 0:00:13]} 26. Kg3 {[%emt 0:00:06]} Ra1 {[%emt 0:01:23]} 27. f5 {[%emt 0:01:09]} Rg1+ {[%emt 0:02:36]} 28. Kf4 {[%emt 0:01:28]} Rf1 {[%emt 0:00:20]} 29. f3 {[%emt 0:04:53]} Rh1 {[%emt 0:02:36]} 30. Kg3 {[%emt 0:00:39]} Rg1+ {[%emt 0:00:16]} 31. Kf2 {[%emt 0:00:31]} Rh1 {[%emt 0:00:09]} 32. Kg2 {[%emt 0:00:06]} Re1 {[%emt 0:00:48]} 33. Rc4 {[%emt 0:08:34]} Rd1 {[%emt 0:07:36]} 34. f6 {[%emt 0:04:50]} gxf6 {[%emt 0:02:31]} 35. Kf2 {[%emt 0:00:11]} Rh1 {[%emt 0:01:40]} 36. h4 {[%emt 0:03:37]} Ke7 {[%emt 0:02:35]} 37. Re4+ {[%emt 0:02:06]} Kd6 {[%emt 0:03:12]} 38. Kg3 {[%emt 0:01:19]} f5 {[%emt 0:02:14]} 39. Re8 {[%emt 0:08:08]} h5 {[%emt 0:01:30]} 40. Rh8 {[%emt 0:05:22]} f4+ {[%emt 0:01:25]} 41. Kg2 {[%emt 0:50:11]} Rc1 {[%emt 0:50:08]} 42. Rxh5 {[%emt 0:02:57]} Rxc2+ {[%emt 0:00:29]} 43. Kh3 {[%emt 0:00:01]} Ke6 {[%emt 0:00:57]} 44. Kg4 {[%emt 0:00:16]} Kf6 {[%emt 0:00:13]} 45. Rf5+ {[%emt 0:00:57]} Kg6 {[%emt 0:00:19]} 46. h5+ {[%emt 0:00:08]} Kg7 {[%emt 0:00:05]} 47. Kxf4 {[%emt 0:00:22]} Rh2 {[%emt 0:00:50]} 48. Kg3 {[%emt 0:00:24]} Rh1 {[%emt 0:00:07]} 49. Kg2 {[%emt 0:00:03]} Rh4 {[%emt 0:00:12]} 50. f4 {[%emt 0:00:34]} Kh6 {[%emt 0:00:34]} 51. Rxf7 {[%emt 0:00:03]} Rxh5 {[%emt 0:00:07]} 52. Kg3 {[%emt 0:00:02]} 1/2-1/2